[Event "Late-Titled-Tuesday-Blitz-March-19-2024"]
[Site "Chess.com"]
[Date "2024.03.19"]
[Round "5"]
[White "Muracle"]
[Black "ameetghasi100"]
[Result "0-1"]
[WhiteElo "2597"]
[BlackElo "2788"]
[TimeControl "180+1"]
[EndTime "14:56:43 PDT"]
[Termination "ameetghasi100 won on time"]

1. d4 {[%clk 0:03:00.9]} 1... g6 {[%clk 0:03:00.4]} 2. Nf3 {[%clk 0:03:01.8]}
2... Nf6 {[%clk 0:03:00.1]} 3. g3 {[%clk 0:03:02.7]} 3... Bg7 {[%clk 0:03:00.7]}
4. Bg2 {[%clk 0:03:03.6]} 4... O-O {[%clk 0:03:01.6]} 5. O-O {[%clk 0:03:04.5]}
5... d5 {[%clk 0:03:02.3]} 6. c4 {[%clk 0:03:03.9]} 6... dxc4 {[%clk 0:03:02.4]}
7. Na3 {[%clk 0:03:02.9]} 7... c3 {[%clk 0:03:02.3]} 8. bxc3 {[%clk 0:03:03.6]}
8... c5 {[%clk 0:03:03.2]} 9. Rb1 {[%clk 0:03:03.3]} 9... Nc6 {[%clk 0:03:00.9]}
10. Ne5 {[%clk 0:03:04]} 10... Nd5 {[%clk 0:02:58.4]} 11. Qb3 {[%clk 0:03:02.3]}
11... Be6 {[%clk 0:02:11.8]} 12. Nxc6 {[%clk 0:03:01.6]} 12... bxc6 {[%clk
0:02:11.9]} 13. c4 {[%clk 0:03:02.2]} 13... Nb4 {[%clk 0:01:35.4]} 14. dxc5
{[%clk 0:02:42.7]} 14... a5 {[%clk 0:01:35.2]} 15. Rd1 {[%clk 0:02:40]} 15...
Qc8 {[%clk 0:01:32.7]} 16. Bd2 {[%clk 0:02:36.8]} 16... Rb8 {[%clk 0:01:13.2]}
17. Bf4 {[%clk 0:02:23.3]} 17... Rb7 {[%clk 0:01:12.4]} 18. Qa4 {[%clk
0:02:23.5]} 18... Bf5 {[%clk 0:01:07.7]} 19. e4 {[%clk 0:02:21.7]} 19... Bg4
{[%clk 0:01:05]} 20. f3 {[%clk 0:02:22.1]} 20... Be6 {[%clk 0:01:05.5]} 21. Qxa5
{[%clk 0:02:12.7]} 21... Nxa2 {[%clk 0:01:05.4]} 22. Rxb7 {[%clk 0:02:11.7]}
22... Qxb7 {[%clk 0:01:06.3]} 23. Rb1 {[%clk 0:02:11.4]} 23... Qd7 {[%clk
0:00:53.2]} 24. Nc2 {[%clk 0:01:14.8]} 24... Nc3 {[%clk 0:00:43.5]} 25. Re1
{[%clk 0:01:13.7]} 25... Bxc4 {[%clk 0:00:38.8]} 26. Ne3 {[%clk 0:01:14]} 26...
Qd2 {[%clk 0:00:23.7]} 27. Ra1 {[%clk 0:00:35.3]} 27... Bb5 {[%clk 0:00:19]} 28.
Nf5 {[%clk 0:00:19.7]} 28... Qb2 {[%clk 0:00:07.6]} 29. Nxg7 {[%clk 0:00:16.3]}
29... Ne2+ {[%clk 0:00:07.1]} 30. Kh1 {[%clk 0:00:16.5]} 30... Nxf4 {[%clk
0:00:07.3]} 31. gxf4 {[%clk 0:00:17.4]} 31... Kxg7 {[%clk 0:00:07.5]} 32. Rg1
{[%clk 0:00:17.5]} 32... Qd4 {[%clk 0:00:06.6]} 33. Qa1 {[%clk 0:00:14.8]} 33...
Rd8 {[%clk 0:00:07.1]} 34. Qxd4+ {[%clk 0:00:09.4]} 34... Rxd4 {[%clk 0:00:08]}
35. Rc1 {[%clk 0:00:10.2]} 35... Rd2 {[%clk 0:00:08.1]} 36. Kg1 {[%clk
0:00:10.3]} 36... Kf6 {[%clk 0:00:07.7]} 37. Bf1 {[%clk 0:00:10.7]} 37... Bxf1
{[%clk 0:00:07.8]} 38. Kxf1 {[%clk 0:00:11.6]} 38... Rxh2 {[%clk 0:00:08.4]} 39.
Kg1 {[%clk 0:00:12.3]} 39... Rb2 {[%clk 0:00:08.3]} 40. Kf1 {[%clk 0:00:12.3]}
40... g5 {[%clk 0:00:07.2]} 41. fxg5+ {[%clk 0:00:07]} 41... Kxg5 {[%clk
0:00:08.1]} 42. Rd1 {[%clk 0:00:05.9]} 42... Rc2 {[%clk 0:00:08.5]} 43. Rd7
{[%clk 0:00:05.9]} 43... Kf6 {[%clk 0:00:09]} 44. Rc7 {[%clk 0:00:04.3]} 44...
Rxc5 {[%clk 0:00:09]} 45. Ke2 {[%clk 0:00:05.2]} 45... h5 {[%clk 0:00:07.9]} 46.
Ke3 {[%clk 0:00:05.1]} 46... Rc3+ {[%clk 0:00:08.3]} 47. Kd4 {[%clk 0:00:04.4]}
47... Rxf3 {[%clk 0:00:08.2]} 48. Rxc6+ {[%clk 0:00:05.1]} 48... e6 {[%clk
0:00:08.7]} 49. Rc7 {[%clk 0:00:04.4]} 49... h4 {[%clk 0:00:08.1]} 50. e5+
{[%clk 0:00:04.9]} 50... Kg6 {[%clk 0:00:08.3]} 51. Rc8 {[%clk 0:00:05.5]} 51...
Kg7 {[%clk 0:00:07.5]} 52. Rc2 {[%clk 0:00:04.9]} 52... h3 {[%clk 0:00:07.5]}
53. Ke4 {[%clk 0:00:04.9]} 53... Ra3 {[%clk 0:00:06.9]} 54. Rh2 {[%clk
0:00:03.9]} 54... Kg6 {[%clk 0:00:06.9]} 55. Kf4 {[%clk 0:00:04.4]} 55... Kh5
{[%clk 0:00:06.7]} 56. Rh1 {[%clk 0:00:03.4]} 56... Kh4 {[%clk 0:00:07]} 57. Rh2
{[%clk 0:00:02.5]} 57... Rb3 {[%clk 0:00:07]} 58. Rh1 {[%clk 0:00:02.5]} 58...
Rb4+ {[%clk 0:00:07.5]} 59. Kf3 {[%clk 0:00:03]} 59... Rb2 {[%clk 0:00:07.5]}
60. Kf4 {[%clk 0:00:03.4]} 60... h2 {[%clk 0:00:06.3]} 61. Kf3 {[%clk
0:00:03.6]} 61... Kh3 {[%clk 0:00:06.6]} 62. Rc1 {[%clk 0:00:03.2]} 62... Rb3+
{[%clk 0:00:06.8]} 63. Kf2 {[%clk 0:00:03.5]} 63... Rb2+ {[%clk 0:00:06.3]} 64.
Kf3 {[%clk 0:00:04]} 64... Rd2 {[%clk 0:00:05.2]} 65. Kf4 {[%clk 0:00:02.2]}
65... Rg2 {[%clk 0:00:04.8]} 66. Rc8 {[%clk 0:00:01.3]} 66... Rg7 {[%clk
0:00:03.5]} 67. Rh8+ {[%clk 0:00:01.1]} 67... Kg2 {[%clk 0:00:03.6]} 0-1

[Event "Late-Titled-Tuesday-Blitz-March-19-2024"]
[Site "Chess.com"]
[Date "2024.03.19"]
[Round "5"]
[White "dretch"]
[Black "Jospem"]
[Result "1-0"]
[WhiteElo "2898"]
[BlackElo "3053"]
[TimeControl "180+1"]
[EndTime "14:56:48 PDT"]
[Termination "dretch won by checkmate"]

1. d4 {[%clk 0:02:58.4]} 1... Nf6 {[%clk 0:03:00.7]} 2. c4 {[%clk 0:02:58.3]}
2... e6 {[%clk 0:03:01.5]} 3. Nc3 {[%clk 0:02:57.7]} 3... Bb4 {[%clk 0:03:02.3]}
4. Qc2 {[%clk 0:02:57.9]} 4... d6 {[%clk 0:03:02.8]} 5. Nf3 {[%clk 0:02:56.8]}
5... Nbd7 {[%clk 0:03:02.5]} 6. Bd2 {[%clk 0:02:56.3]} 6... c5 {[%clk
0:03:00.6]} 7. e3 {[%clk 0:02:54.8]} 7... b6 {[%clk 0:02:59.4]} 8. Nb5 {[%clk
0:02:44.8]} 8... Bxd2+ {[%clk 0:02:59.3]} 9. Nxd2 {[%clk 0:02:44.9]} 9... O-O
{[%clk 0:02:57.3]} 10. Nxd6 {[%clk 0:02:43.5]} 10... cxd4 {[%clk 0:02:57.9]} 11.
exd4 {[%clk 0:02:43.1]} 11... e5 {[%clk 0:02:58.5]} 12. O-O-O {[%clk 0:02:37.4]}
12... exd4 {[%clk 0:02:58.3]} 13. Nf3 {[%clk 0:02:34]} 13... Nc5 {[%clk
0:02:55.3]} 14. Rxd4 {[%clk 0:02:30.9]} 14... Qc7 {[%clk 0:02:48.2]} 15. Be2
{[%clk 0:02:22.3]} 15... Be6 {[%clk 0:02:26.1]} 16. Rhd1 {[%clk 0:02:19.8]}
16... a6 {[%clk 0:02:19.5]} 17. Ng5 {[%clk 0:02:13.6]} 17... h6 {[%clk
0:02:15.8]} 18. Nxe6 {[%clk 0:02:11.1]} 18... Nxe6 {[%clk 0:02:16.7]} 19. R4d2
{[%clk 0:02:11.2]} 19... Rab8 {[%clk 0:02:06.4]} 20. Kb1 {[%clk 0:02:09.3]}
20... Qc5 {[%clk 0:01:52.5]} 21. Bf1 {[%clk 0:01:48.3]} 21... Rfd8 {[%clk
0:01:16.2]} 22. g3 {[%clk 0:01:47]} 22... Rd7 {[%clk 0:01:11.1]} 23. Ne4 {[%clk
0:01:45.5]} 23... Rxd2 {[%clk 0:01:02]} 24. Nxf6+ {[%clk 0:01:44.7]} 24... gxf6
{[%clk 0:01:02.9]} 25. Rxd2 {[%clk 0:01:39]} 25... Kg7 {[%clk 0:01:03.1]} 26.
Rd5 {[%clk 0:01:30.7]} 26... Qc7 {[%clk 0:00:57.4]} 27. Qe4 {[%clk 0:01:27]}
27... b5 {[%clk 0:00:57.3]} 28. Qg4+ {[%clk 0:01:13.7]} 28... Kf8 {[%clk
0:00:57.3]} 29. c5 {[%clk 0:00:50.9]} 29... Nxc5 {[%clk 0:00:46.4]} 30. Qh5
{[%clk 0:00:50.8]} 30... Rc8 {[%clk 0:00:39]} 31. Qxh6+ {[%clk 0:00:48.2]} 31...
Ke7 {[%clk 0:00:39.6]} 32. Qd2 {[%clk 0:00:17.9]} 32... Kf8 {[%clk 0:00:31]} 33.
Bh3 {[%clk 0:00:11.8]} 33... Re8 {[%clk 0:00:17.4]} 34. Bf5 {[%clk 0:00:11.9]}
34... Re5 {[%clk 0:00:14.2]} 35. h4 {[%clk 0:00:07.8]} 35... Ke7 {[%clk
0:00:11.6]} 36. Rxe5+ {[%clk 0:00:07.2]} 36... Qxe5 {[%clk 0:00:12.5]} 37. Bc2
{[%clk 0:00:06.2]} 37... Ne6 {[%clk 0:00:12.1]} 38. a3 {[%clk 0:00:06.3]} 38...
Ke8 {[%clk 0:00:10.7]} 39. Bd1 {[%clk 0:00:06.2]} 39... Qf5+ {[%clk 0:00:10.4]}
40. Qc2 {[%clk 0:00:06.2]} 40... Qd5 {[%clk 0:00:09.2]} 41. Qc8+ {[%clk
0:00:05.1]} 41... Ke7 {[%clk 0:00:09.5]} 42. Qc2 {[%clk 0:00:05.7]} 42... Kf8
{[%clk 0:00:09.5]} 43. Be2 {[%clk 0:00:05.9]} 43... Kg7 {[%clk 0:00:09.5]} 44.
Qd3 {[%clk 0:00:05.9]} 44... Qe5 {[%clk 0:00:09.7]} 45. Qf3 {[%clk 0:00:05.3]}
45... f5 {[%clk 0:00:08.9]} 46. Bd3 {[%clk 0:00:04.6]} 46... Nd4 {[%clk
0:00:09.6]} 47. Qd1 {[%clk 0:00:04.6]} 47... a5 {[%clk 0:00:09.5]} 48. Qd2
{[%clk 0:00:04.9]} 48... b4 {[%clk 0:00:07.6]} 49. axb4 {[%clk 0:00:04.1]} 49...
axb4 {[%clk 0:00:08]} 50. Qxb4 {[%clk 0:00:04.3]} 50... Qd5 {[%clk 0:00:08.8]}
51. Qc3 {[%clk 0:00:03.3]} 51... Kh6 {[%clk 0:00:07.2]} 52. Qc1+ {[%clk
0:00:03.4]} 52... Kg7 {[%clk 0:00:07.3]} 53. Bc2 {[%clk 0:00:03.4]} 53... Qe5
{[%clk 0:00:05.9]} 54. Qg5+ {[%clk 0:00:03.3]} 54... Kf8 {[%clk 0:00:06.1]} 55.
Qe3 {[%clk 0:00:04]} 55... Qd5 {[%clk 0:00:06.1]} 56. Qa3+ {[%clk 0:00:04.1]}
56... Kg7 {[%clk 0:00:06.3]} 57. Qd3 {[%clk 0:00:04.9]} 57... Qh1+ {[%clk
0:00:05.6]} 58. Bd1 {[%clk 0:00:04.6]} 58... Qd5 {[%clk 0:00:06.1]} 59. b4
{[%clk 0:00:03.8]} 59... Kg8 {[%clk 0:00:04]} 60. Kb2 {[%clk 0:00:04.3]} 60...
Qe5 {[%clk 0:00:04.3]} 61. Qc3 {[%clk 0:00:04]} 61... Qd5 {[%clk 0:00:03.9]} 62.
Bc2 {[%clk 0:00:04.9]} 62... Ne6 {[%clk 0:00:04.1]} 63. Bb3 {[%clk 0:00:04.9]}
63... Qg2 {[%clk 0:00:03.1]} 64. Bxe6 {[%clk 0:00:05.8]} 64... Qxf2+ {[%clk
0:00:03.6]} 65. Qc2 {[%clk 0:00:06.1]} 65... Qd4+ {[%clk 0:00:04.3]} 66. Qc3
{[%clk 0:00:06.6]} 66... Qf2+ {[%clk 0:00:04.8]} 67. Kb3 {[%clk 0:00:07.3]}
67... fxe6 {[%clk 0:00:05.1]} 68. b5 {[%clk 0:00:07.9]} 68... Kf7 {[%clk
0:00:04.8]} 69. Qc7+ {[%clk 0:00:07.6]} 69... Kg6 {[%clk 0:00:05.5]} 70. b6
{[%clk 0:00:08.2]} 70... Qf3+ {[%clk 0:00:06]} 71. Kb4 {[%clk 0:00:08.5]} 71...
Qe4+ {[%clk 0:00:06.6]} 72. Kb5 {[%clk 0:00:09]} 72... Qd3+ {[%clk 0:00:07.2]}
73. Kc6 {[%clk 0:00:09.1]} 73... Qe4+ {[%clk 0:00:07.8]} 74. Kd7 {[%clk
0:00:09]} 74... Qd5+ {[%clk 0:00:08.5]} 75. Ke7 {[%clk 0:00:09.4]} 75... e5
{[%clk 0:00:07.7]} 76. Qd6+ {[%clk 0:00:09.1]} 76... Qxd6+ {[%clk 0:00:08.3]}
77. Kxd6 {[%clk 0:00:10]} 77... e4 {[%clk 0:00:09.2]} 78. b7 {[%clk 0:00:10.5]}
78... e3 {[%clk 0:00:10.1]} 79. b8=Q {[%clk 0:00:11]} 79... e2 {[%clk 0:00:11]}
80. Qb4 {[%clk 0:00:11]} 80... e1=Q {[%clk 0:00:11.9]} 81. Qxe1 {[%clk
0:00:11.2]} 81... f4 {[%clk 0:00:12.8]} 82. gxf4 {[%clk 0:00:11.2]} 82... Kf5
{[%clk 0:00:13.6]} 83. Qe5+ {[%clk 0:00:11.2]} 83... Kg4 {[%clk 0:00:14.1]} 84.
Qg5+ {[%clk 0:00:11.5]} 84... Kh3 {[%clk 0:00:14.6]} 85. Ke5 {[%clk 0:00:11.2]}
85... Kh2 {[%clk 0:00:15.5]} 86. Ke4 {[%clk 0:00:11.9]} 86... Kh1 {[%clk
0:00:16.4]} 87. Kf3 {[%clk 0:00:12.6]} 87... Kh2 {[%clk 0:00:17.3]} 88. Qg2#
{[%clk 0:00:13]} 1-0

[Event "Late-Titled-Tuesday-Blitz-March-19-2024"]
[Site "Chess.com"]
[Date "2024.03.19"]
[Round "5"]
[White "JoakimVonAnd"]
[Black "sergiochess83"]
[Result "0-1"]
[WhiteElo "2708"]
[BlackElo "2963"]
[TimeControl "180+1"]
[EndTime "14:56:51 PDT"]
[Termination "sergiochess83 won by checkmate"]

1. d4 {[%clk 0:03:00.9]} 1... Nf6 {[%clk 0:02:58.9]} 2. g3 {[%clk 0:03:01]} 2...
d5 {[%clk 0:02:56.1]} 3. Bg2 {[%clk 0:03:00.6]} 3... Nbd7 {[%clk 0:02:51.6]} 4.
Nf3 {[%clk 0:02:59]} 4... Nb6 {[%clk 0:02:47.2]} 5. O-O {[%clk 0:02:58.7]} 5...
Bf5 {[%clk 0:02:47.1]} 6. Nc3 {[%clk 0:02:57.9]} 6... e6 {[%clk 0:02:47.5]} 7.
Nh4 {[%clk 0:02:57.6]} 7... Bg4 {[%clk 0:02:45.9]} 8. h3 {[%clk 0:02:54.8]} 8...
Bh5 {[%clk 0:02:45.3]} 9. g4 {[%clk 0:02:51.5]} 9... Bg6 {[%clk 0:02:44.6]} 10.
a4 {[%clk 0:02:46.5]} 10... a5 {[%clk 0:02:37]} 11. Bf4 {[%clk 0:02:34.6]} 11...
Bd6 {[%clk 0:02:25.4]} 12. Bxd6 {[%clk 0:02:29.1]} 12... Qxd6 {[%clk 0:02:25.1]}
13. b3 {[%clk 0:02:27.3]} 13... c6 {[%clk 0:02:24.4]} 14. Qd2 {[%clk 0:02:25]}
14... O-O {[%clk 0:02:01.3]} 15. Rad1 {[%clk 0:02:20.9]} 15... Ne4 {[%clk
0:01:45.2]} 16. Nxe4 {[%clk 0:02:05.6]} 16... Bxe4 {[%clk 0:01:46.1]} 17. f3
{[%clk 0:01:59.8]} 17... Qg3 {[%clk 0:01:05.9]} 18. fxe4 {[%clk 0:01:47.1]}
18... Qxh4 {[%clk 0:01:06]} 19. e5 {[%clk 0:01:38.1]} 19... c5 {[%clk
0:01:05.7]} 20. c3 {[%clk 0:01:35]} 20... c4 {[%clk 0:01:01.4]} 21. bxc4 {[%clk
0:01:20.9]} 21... Nxc4 {[%clk 0:01:00.7]} 22. Qd3 {[%clk 0:01:21.4]} 22... Nb2
{[%clk 0:00:49.2]} 23. Qb5 {[%clk 0:01:15.9]} 23... Nxd1 {[%clk 0:00:48.3]} 24.
Rxd1 {[%clk 0:01:16.8]} 24... h5 {[%clk 0:00:47.3]} 25. gxh5 {[%clk 0:01:10.7]}
25... Qxh5 {[%clk 0:00:48.2]} 26. Rf1 {[%clk 0:01:09.9]} 26... Rac8 {[%clk
0:00:44.2]} 27. Rf3 {[%clk 0:01:05.1]} 27... Qg5 {[%clk 0:00:38.9]} 28. Kh2
{[%clk 0:01:04.4]} 28... Qd2 {[%clk 0:00:33.9]} 29. Qxa5 {[%clk 0:00:54.3]}
29... Qxe2 {[%clk 0:00:33.8]} 30. Rg3 {[%clk 0:00:54.6]} 30... Qc4 {[%clk
0:00:26.6]} 31. Qb6 {[%clk 0:00:50.6]} 31... Qxa4 {[%clk 0:00:17.1]} 32. Qxb7
{[%clk 0:00:49.6]} 32... Qa5 {[%clk 0:00:16.4]} 33. Qb2 {[%clk 0:00:39.4]} 33...
f5 {[%clk 0:00:10.6]} 34. exf6 {[%clk 0:00:25]} 34... Rxf6 {[%clk 0:00:10.6]}
35. Qd2 {[%clk 0:00:24.8]} 35... Qc7 {[%clk 0:00:10]} 36. h4 {[%clk 0:00:20.4]}
36... Rcf8 {[%clk 0:00:09.3]} 37. Qg5 {[%clk 0:00:19.7]} 37... R8f7 {[%clk
0:00:09]} 38. Kh3 {[%clk 0:00:20.2]} 38... Qf4 {[%clk 0:00:08]} 39. Qh5 {[%clk
0:00:19.5]} 39... Qf5+ {[%clk 0:00:07.9]} 40. Qxf5 {[%clk 0:00:17.6]} 40... Rxf5
{[%clk 0:00:08.8]} 41. Re3 {[%clk 0:00:16.3]} 41... R7f6 {[%clk 0:00:09.3]} 42.
Re1 {[%clk 0:00:14.8]} 42... Rf2 {[%clk 0:00:08.5]} 43. Rb1 {[%clk 0:00:13.8]}
43... Rc2 {[%clk 0:00:08.5]} 44. Rb8+ {[%clk 0:00:13]} 44... Kh7 {[%clk
0:00:08.1]} 45. Rc8 {[%clk 0:00:12.6]} 45... Rf4 {[%clk 0:00:06]} 46. Rc5 {[%clk
0:00:11.2]} 46... Rd2 {[%clk 0:00:05.1]} 47. Rc6 {[%clk 0:00:10.6]} 47... Rf6
{[%clk 0:00:04.6]} 48. Kg3 {[%clk 0:00:07.1]} 48... Rd3+ {[%clk 0:00:05]} 49.
Kh2 {[%clk 0:00:07.5]} 49... Kh6 {[%clk 0:00:05.8]} 50. Bh3 {[%clk 0:00:06.4]}
50... Re3 {[%clk 0:00:04.3]} 51. Bg2 {[%clk 0:00:06.2]} 51... Kh5 {[%clk
0:00:04.6]} 52. c4 {[%clk 0:00:06.2]} 52... dxc4 {[%clk 0:00:04.2]} 53. Rxc4
{[%clk 0:00:07.1]} 53... Kh6 {[%clk 0:00:03.9]} 54. Rc5 {[%clk 0:00:07.2]} 54...
Rd3 {[%clk 0:00:03.9]} 55. d5 {[%clk 0:00:07.2]} 55... exd5 {[%clk 0:00:04]} 56.
Rxd5 {[%clk 0:00:07.8]} 56... Rxd5 {[%clk 0:00:03.9]} 57. Bxd5 {[%clk
0:00:08.7]} 57... Rd6 {[%clk 0:00:03.9]} 58. Bf3 {[%clk 0:00:08.1]} 58... Rd3
{[%clk 0:00:04]} 59. Kg3 {[%clk 0:00:08.7]} 59... Ra3 {[%clk 0:00:04.4]} 60. Kg4
{[%clk 0:00:09.2]} 60... Rb3 {[%clk 0:00:04.7]} 61. Kg3 {[%clk 0:00:09.7]} 61...
Rb4 {[%clk 0:00:05.6]} 62. Kh3 {[%clk 0:00:09.6]} 62... Kg6 {[%clk 0:00:06.1]}
63. Kg3 {[%clk 0:00:10.1]} 63... Kf6 {[%clk 0:00:07]} 64. Bg4 {[%clk 0:00:09.6]}
64... Ke5 {[%clk 0:00:07.9]} 65. Bf3 {[%clk 0:00:10]} 65... Rd4 {[%clk
0:00:07.7]} 66. Be2 {[%clk 0:00:09.7]} 66... Ke4 {[%clk 0:00:07.5]} 67. Bh5
{[%clk 0:00:09.1]} 67... Kf5 {[%clk 0:00:07.4]} 68. Bf3 {[%clk 0:00:09]} 68...
Rd3 {[%clk 0:00:07.9]} 69. Kg2 {[%clk 0:00:07]} 69... Kf4 {[%clk 0:00:08.3]} 70.
Be2 {[%clk 0:00:07.5]} 70... Rg3+ {[%clk 0:00:08.3]} 71. Kh2 {[%clk 0:00:07.2]}
71... Ra3 {[%clk 0:00:09.2]} 72. Bh5 {[%clk 0:00:07.3]} 72... Ra2+ {[%clk
0:00:08.2]} 73. Kh3 {[%clk 0:00:07.4]} 73... Ra3+ {[%clk 0:00:09.1]} 74. Kh2
{[%clk 0:00:07.8]} 74... Rc3 {[%clk 0:00:08.6]} 75. Bd1 {[%clk 0:00:06.1]} 75...
Rd3 {[%clk 0:00:08.9]} 76. Bh5 {[%clk 0:00:06.4]} 76... Rd5 {[%clk 0:00:09.1]}
77. Be2 {[%clk 0:00:06.5]} 77... Rd2 {[%clk 0:00:09.1]} 78. Kh3 {[%clk
0:00:06.1]} 78... Rxe2 {[%clk 0:00:09.2]} 79. h5 {[%clk 0:00:07]} 79... Rc2
{[%clk 0:00:08.5]} 80. h6 {[%clk 0:00:07.9]} 80... gxh6 {[%clk 0:00:08.5]} 81.
Kh4 {[%clk 0:00:08.8]} 81... Rh2# {[%clk 0:00:08.2]} 0-1

[Event "Late-Titled-Tuesday-Blitz-March-19-2024"]
[Site "Chess.com"]
[Date "2024.03.19"]
[Round "5"]
[White "marcodobrikov"]
[Black "Angry_Twin"]
[Result "1-0"]
[WhiteElo "2716"]
[BlackElo "2926"]
[TimeControl "180+1"]
[EndTime "14:57:08 PDT"]
[Termination "marcodobrikov won by resignation"]

1. e4 {[%clk 0:02:45.8]} 1... c5 {[%clk 0:02:52.3]} 2. Nf3 {[%clk 0:02:36.7]}
2... d6 {[%clk 0:02:50.5]} 3. d4 {[%clk 0:02:35.9]} 3... cxd4 {[%clk 0:02:51.4]}
4. Nxd4 {[%clk 0:02:36.4]} 4... Nf6 {[%clk 0:02:51.9]} 5. Nc3 {[%clk 0:02:35]}
5... a6 {[%clk 0:02:52.3]} 6. h3 {[%clk 0:02:35.2]} 6... e6 {[%clk 0:02:51.3]}
7. g4 {[%clk 0:02:32.6]} 7... h6 {[%clk 0:02:51.4]} 8. Bg2 {[%clk 0:02:32.3]}
8... Nc6 {[%clk 0:02:50.3]} 9. O-O {[%clk 0:02:32.1]} 9... Nxd4 {[%clk
0:02:48.7]} 10. Qxd4 {[%clk 0:02:31.2]} 10... e5 {[%clk 0:02:49.4]} 11. Qd3
{[%clk 0:02:30]} 11... g5 {[%clk 0:02:46.7]} 12. Be3 {[%clk 0:02:18.1]} 12...
Be7 {[%clk 0:02:45.4]} 13. Rfd1 {[%clk 0:02:12.9]} 13... Be6 {[%clk 0:02:44.9]}
14. Nd5 {[%clk 0:02:09.5]} 14... Bxd5 {[%clk 0:02:19.2]} 15. exd5 {[%clk
0:02:10.4]} 15... Nd7 {[%clk 0:02:11.2]} 16. Be4 {[%clk 0:02:04]} 16... Qc7
{[%clk 0:01:50.1]} 17. c4 {[%clk 0:02:01.6]} 17... a5 {[%clk 0:01:49.4]} 18. b3
{[%clk 0:01:57.7]} 18... b6 {[%clk 0:01:42.4]} 19. Bf5 {[%clk 0:01:52.9]} 19...
Nc5 {[%clk 0:01:42.2]} 20. Qc2 {[%clk 0:01:53.1]} 20... Kf8 {[%clk 0:01:32.5]}
21. a3 {[%clk 0:01:52.5]} 21... a4 {[%clk 0:01:20.6]} 22. b4 {[%clk 0:01:49.5]}
22... Nb3 {[%clk 0:01:20.9]} 23. Ra2 {[%clk 0:01:41.9]} 23... Bf6 {[%clk
0:01:20.4]} 24. Qd3 {[%clk 0:01:33.7]} 24... Kg7 {[%clk 0:01:19.2]} 25. Rc2
{[%clk 0:01:24.9]} 25... Rad8 {[%clk 0:01:16.4]} 26. Kg2 {[%clk 0:01:24.9]}
26... Nd4 {[%clk 0:01:13.6]} 27. Bxd4 {[%clk 0:01:15.4]} 27... exd4 {[%clk
0:01:14.5]} 28. Re1 {[%clk 0:00:59.8]} 28... Be5 {[%clk 0:01:12.9]} 29. f3
{[%clk 0:00:51.6]} 29... Rhe8 {[%clk 0:01:01.7]} 30. Re4 {[%clk 0:00:51.9]}
30... Bf6 {[%clk 0:01:00.6]} 31. Rce2 {[%clk 0:00:43.6]} 31... Rxe4 {[%clk
0:01:00.8]} 32. Bxe4 {[%clk 0:00:39.3]} 32... Be5 {[%clk 0:01:01.1]} 33. Rc2
{[%clk 0:00:38.7]} 33... Qe7 {[%clk 0:00:59.4]} 34. Bf5 {[%clk 0:00:37.9]} 34...
Re8 {[%clk 0:00:57.6]} 35. Re2 {[%clk 0:00:37.8]} 35... Qc7 {[%clk 0:00:53.6]}
36. h4 {[%clk 0:00:36]} 36... Qe7 {[%clk 0:00:45.7]} 37. Re1 {[%clk 0:00:30.4]}
37... Rh8 {[%clk 0:00:34.1]} 38. h5 {[%clk 0:00:30.3]} 38... Re8 {[%clk
0:00:29.5]} 39. Qc2 {[%clk 0:00:30.3]} 39... Qa7 {[%clk 0:00:29.3]} 40. Bd3
{[%clk 0:00:29.2]} 40... Re7 {[%clk 0:00:28.4]} 41. Re4 {[%clk 0:00:29.3]} 41...
Rc7 {[%clk 0:00:18.3]} 42. Qe2 {[%clk 0:00:29.3]} 42... f6 {[%clk 0:00:18.7]}
43. Qd1 {[%clk 0:00:24.1]} 43... b5 {[%clk 0:00:18.3]} 44. cxb5 {[%clk
0:00:18.6]} 44... Rc3 {[%clk 0:00:18.5]} 45. Re2 {[%clk 0:00:17.4]} 45... Rxa3
{[%clk 0:00:18.6]} 46. Rd2 {[%clk 0:00:17.1]} 46... Rc3 {[%clk 0:00:17.1]} 47.
Qe2 {[%clk 0:00:16.8]} 47... Rc8 {[%clk 0:00:08.1]} 48. Qe4 {[%clk 0:00:16.7]}
48... Kg8 {[%clk 0:00:08.1]} 49. Qg6+ {[%clk 0:00:14.8]} 49... Qg7 {[%clk
0:00:08.3]} 50. Qf5 {[%clk 0:00:15.1]} 50... Rb8 {[%clk 0:00:08.8]} 51. Ra2
{[%clk 0:00:15]} 51... Qa7 {[%clk 0:00:06]} 52. Qg6+ {[%clk 0:00:12.4]} 52...
Qg7 {[%clk 0:00:06.3]} 53. Rxa4 {[%clk 0:00:12.8]} 53... Qxg6 {[%clk 0:00:06.4]}
54. hxg6 {[%clk 0:00:13.7]} 54... Kg7 {[%clk 0:00:03.1]} 55. Ra7+ {[%clk
0:00:13.2]} 55... Kh8 {[%clk 0:00:02.3]} 56. Ra6 {[%clk 0:00:13.4]} 56... Kg7
{[%clk 0:00:02.5]} 57. Rc6 {[%clk 0:00:13.2]} 57... Bf4 {[%clk 0:00:02.1]} 58.
b6 {[%clk 0:00:13.1]} 58... Be5 {[%clk 0:00:02.1]} 59. Ba6 {[%clk 0:00:12.3]}
59... Kxg6 {[%clk 0:00:02.1]} 60. b7 {[%clk 0:00:12.7]} 60... f5 {[%clk
0:00:02.5]} 61. Rc8 {[%clk 0:00:13.1]} 61... Rxb7 {[%clk 0:00:03.1]} 62. Bxb7
{[%clk 0:00:13]} 62... d3 {[%clk 0:00:04]} 63. Ba6 {[%clk 0:00:12.6]} 63... d2
{[%clk 0:00:04.4]} 64. Be2 {[%clk 0:00:13.2]} 64... h5 {[%clk 0:00:03.8]} 65.
gxf5+ {[%clk 0:00:13.3]} 65... Kxf5 {[%clk 0:00:04.2]} 66. b5 {[%clk 0:00:13.9]}
66... Bd4 {[%clk 0:00:04.8]} 67. Rc6 {[%clk 0:00:13.4]} 67... Ke5 {[%clk
0:00:05.1]} 68. b6 {[%clk 0:00:13.7]} 68... Kxd5 {[%clk 0:00:05.9]} 69. b7
{[%clk 0:00:14.2]} 69... Ba7 {[%clk 0:00:06.5]} 70. Rc8 {[%clk 0:00:14.1]} 70...
Kd4 {[%clk 0:00:07.2]} 71. b8=Q {[%clk 0:00:14.6]} 71... Bxb8 {[%clk 0:00:08]}
72. Rxb8 {[%clk 0:00:15.3]} 72... Ke3 {[%clk 0:00:08.9]} 73. Kf1 {[%clk
0:00:15.2]} 73... h4 {[%clk 0:00:09]} 74. Rg8 {[%clk 0:00:14.8]} 74... Kf4
{[%clk 0:00:09.3]} 75. Rh8 {[%clk 0:00:13.2]} 75... Kg3 {[%clk 0:00:09.3]} 76.
Rh5 {[%clk 0:00:13.1]} 76... Kf4 {[%clk 0:00:09.5]} 77. Kf2 {[%clk 0:00:12.4]}
77... d5 {[%clk 0:00:09.8]} 78. Rh8 {[%clk 0:00:12.2]} 78... d4 {[%clk
0:00:09.6]} 79. Rf8+ {[%clk 0:00:12]} 79... Ke5 {[%clk 0:00:10]} 80. Bd1 {[%clk
0:00:12.1]} 80... Ke6 {[%clk 0:00:05.7]} 81. f4 {[%clk 0:00:12.4]} 81... gxf4
{[%clk 0:00:05.2]} 82. Rxf4 {[%clk 0:00:12.5]} 82... h3 {[%clk 0:00:06.1]} 83.
Rxd4 {[%clk 0:00:12.4]} 83... h2 {[%clk 0:00:05.6]} 84. Kg2 {[%clk 0:00:12.8]}
84... Ke5 {[%clk 0:00:06.5]} 85. Rxd2 {[%clk 0:00:12.6]} 85... Kf4 {[%clk
0:00:07]} 86. Kxh2 {[%clk 0:00:13]} 86... Ke3 {[%clk 0:00:07.9]} 87. Ra2 {[%clk
0:00:13.1]} 87... Kd3 {[%clk 0:00:08.8]} 88. Bg4 {[%clk 0:00:13.2]} 88... Kc3
{[%clk 0:00:09.7]} 89. Kg3 {[%clk 0:00:13.6]} 1-0